[Event "Austrian Championship Girls-U14 2024"]
[Site "Fuerstenfeld"]
[Date "2024.06.01"]
[Round "5.1"]
[White "Knittel-Templ, Paula"]
[Black "Wiessner, Elisabeth"]
[Result "0-1"]
[ECO "D82"]
[WhiteElo "1599"]
[BlackElo "1572"]
[Annotator "NA RC"]
[PlyCount "134"]
[EventDate "2024.05.28"]
[EventType "swiss"]
[EventCountry "AUT"]
[SourceTitle "playchess.com"]
[Source "ChessBase"]
[SourceQuality "1"]
[TimeControl "5400+30"]

1. d4 {[%emt 0:00:06]} Nf6 {[%emt 0:00:41]} 2. c4 {[%emt 0:00:28]} g6 {[%emt 0:01:09]} 3. Nc3 {[%emt 0:00:28]} d5 {[%emt 0:00:47]} 4. Bf4 {[%emt 0:03:40]} c6 {[%emt 0:09:02]} 5. e3 {[%emt 0:02:14]} Bg7 {[%emt 0:02:09]} 6. Bd3 {[%emt 0:02:02]} dxc4 {[%emt 0:03:26]} 7. Bxc4 {[%emt 0:00:11]} Nbd7 {[%emt 0:01:02]} 8. Nf3 {[%emt 0:00:55]} Nb6 {[%emt 0:01:48]} 9. Qb3 {[%emt 0:02:57]} O-O {[%emt 0:07:21]} 10. h3 {[%emt 0:00:24]} Nxc4 {[%emt 0:07:51]} 11. Qxc4 {[%emt 0:03:01]} Qb6 {[%emt 0:04:08]} 12. Qb3 {[%emt 0:05:04]} Qxb3 {[%emt 0:00:56]} 13. axb3 {[%emt 0:00:09]} Be6 {[%emt 0:01:42]} 14. Nd2 {[%emt 0:03:31]} Rfc8 {[%emt 0:08:10]} 15. b4 {[%emt 0:01:25]} b6 {[%emt 0:04:08]} 16. O-O {[%emt 0:02:08]} c5 {[%emt 0:02:04]} 17. bxc5 {[%emt 0:00:29]} bxc5 {[%emt 0:00:16]} 18. dxc5 {[%emt 0:00:53]} Rxc5 {[%emt 0:00:20]} 19. Rfc1 {[%emt 0:01:00]} a5 {[%emt 0:07:03]} 20. b4 {[%emt 0:02:42]} Rxc3 {[%emt 0:06:25]} 21. Rxc3 {[%emt 0:00:10]} Nd5 {[%emt 0:00:06]} 22. Rca3 {[%emt 0:10:07]} Bxa1 {[%emt 0:00:22]} 23. Rxa1 {[%emt 0:00:43]} Nxb4 {[%emt 0:00:25]} 24. Be5 {[%emt 0:01:47]} a4 {[%emt 0:03:01]} 25. Ne4 {[%emt 0:00:46]} a3 {[%emt 0:11:29]} 26. Nc5 {[%emt 0:03:17]} a2 {[%emt 0:01:51]} 27. Rd1 {[%emt 0:02:26]} Nc2 {[%emt 0:05:15]} 28. Na4 {[%emt 0:01:55]} a1=Q {[%emt 0:01:21]} 29. Bxa1 {[%emt 0:00:08]} Nxa1 {[%emt 0:00:05]} 30. Rxa1 {[%emt 0:01:32]} Bb3 {[%emt 0:00:23]} 31. Ra3 {[%emt 0:00:17]} Bxa4 {[%emt 0:00:16]} 32. f3 {[%emt 0:00:19]} Bc6 {[%emt 0:00:14]} 33. Rc3 {[%emt 0:00:11]} Rc8 {[%emt 0:01:06]} 34. Kf2 {[%emt 0:00:14]} Bd7 {[%emt 0:00:25]} 35. Rd3 {[%emt 0:00:22]} Be6 {[%emt 0:00:22]} 36. Kg3 {[%emt 0:00:27]} Kg7 {[%emt 0:00:48]} 37. e4 {[%emt 0:00:34]} f6 {[%emt 0:02:41]} 38. Ra3 {[%emt 0:01:06]} Bf7 {[%emt 0:01:56]} 39. Ra7 {[%emt 0:00:17]} e5 {[%emt 0:00:23]} 40. h4 {[%emt 0:00:20]} Rc2 {[%emt 0:00:41]} 41. Rb7 {[%emt 0:00:25]} f5 {[%emt 0:01:55]} 42. exf5 {[%emt 0:00:36]} gxf5 {[%emt 0:00:10]} 43. h5 {[%emt 0:50:14]} Rc6 {[%emt 0:01:59]} 44. Kh4 {[%emt 0:00:00]} h6 {[%emt 0:00:22]} 45. Rd7 {[%emt 0:00:00]} Rc4+ {[%emt 0:00:48]} 46. Kg3 {[%emt 0:00:00]} Kf6 {[%emt 0:00:24]} 47. Rd6+ {[%emt 0:00:00]} Kg5 {[%emt 0:00:38]} 48. Rd7 {[%emt 0:00:00]} Bxh5 {[%emt 0:00:19]} 49. Rd6 {[%emt 0:00:00]} Rc3 {[%emt 0:00:26]} 50. Rd8 {[%emt 0:00:00]} Bg6 {[%emt 0:00:39]} 51. Rg8 {[%emt 0:00:00]} e4 {[%emt 0:00:31]} 52. Kf2 {[%emt 0:00:00]} e3+ {[%emt 0:00:29]} 53. Ke2 {[%emt 0:00:00]} f4 {[%emt 0:00:14]} 54. Rb8 {[%emt 0:00:00]} Rc2+ {[%emt 0:00:20]} 55. Ke1 {[%emt 0:00:00]} Rxg2 {[%emt 0:00:17]} 56. Rb5+ {[%emt 0:00:00]} Bf5 {[%emt 0:00:13]} 57. Kf1 {[%emt 0:00:00]} Rf2+ {[%emt 0:00:09]} 58. Ke1 {[%emt 0:00:00]} Rxf3 {[%emt 0:00:09]} 59. Re5 {[%emt 0:00:00]} h5 {[%emt 0:00:10]} 60. Ke2 {[%emt 0:00:00]} Rf2+ {[%emt 0:00:06]} 61. Ke1 {[%emt 0:00:00]} h4 {[%emt 0:00:09]} 62. Re8 {[%emt 0:00:00]} h3 {[%emt 0:00:22]} 63. Rg8+ {[%emt 0:00:00]} Bg6 {[%emt 0:00:07]} 64. Kd1 {[%emt 0:00:00]} h2 {[%emt 0:00:07]} 65. Rh8 {[%emt 0:00:00]} Rf1+ {[%emt 0:00:09]} 66. Ke2 {[%emt 0:00:00]} h1=Q {[%emt 0:00:06]} 67. Rh4 {[%emt 0:00:00]} Qg2# {[%emt 0:00:07]} 0-1

[Event "Austrian Championship Girls-U14 2024"]
[Site "Fuerstenfeld"]
[Date "2024.06.01"]
[Round "5.2"]
[White "Aboulenein-Djamshidian, Kimia"]
[Black "Brunner, Josephina Akiko"]
[Result "1/2-1/2"]
[ECO "A34"]
[WhiteElo "1547"]
[BlackElo "1744"]
[Annotator "NA RC"]
[PlyCount "82"]
[EventDate "2024.05.28"]
[EventType "swiss"]
[EventCountry "AUT"]
[SourceTitle "playchess.com"]
[Source "ChessBase"]
[SourceQuality "1"]
[TimeControl "5400+30"]

1. c4 {[%emt 0:00:46]} Nf6 {[%emt 0:00:31]} 2. Nc3 {[%emt 0:00:12]} d5 {[%emt 0:01:05]} 3. cxd5 {[%emt 0:02:04]} Nxd5 {[%emt 1:30:24]} 4. Nxd5 {[%emt 0:00:53]} Qxd5 {[%emt 0:00:00]} 5. Nf3 {[%emt 0:01:09]} g6 {[%emt 0:00:00]} 6. g3 {[%emt 0:00:44]} Bg7 {[%emt 0:00:00]} 7. Bg2 {[%emt 0:01:14]} O-O {[%emt 0:00:00]} 8. O-O {[%emt 0:00:52]} c5 {[%emt 0:00:00]} 9. e3 {[%emt 0:02:10]} Qd6 {[%emt 0:00:00]} 10. d4 {[%emt 0:10:04]} Rd8 {[%emt 0:00:00]} 11. Qa4 {[%emt 0:05:18]} cxd4 {[%emt 0:00:00]} 12. exd4 {[%emt 0:07:35]} Qa6 {[%emt 0:00:00]} 13. Qxa6 {[%emt 0:05:07]} Nxa6 {[%emt 0:00:00]} 14. Rd1 {[%emt 0:00:33]} Nb4 {[%emt 0:00:00]} 15. Bd2 {[%emt 0:13:49]} Nc6 {[%emt 0:00:00]} 16. Bc3 {[%emt 0:00:58]} Be6 {[%emt 0:00:00]} 17. h3 {[%emt 0:09:50]} Bd5 {[%emt 0:00:00]} 18. Ne5 {[%emt 0:07:04]} Bxg2 {[%emt 0:00:00]} 19. Kxg2 {[%emt 0:00:25]} Rac8 {[%emt 0:00:00]} 20. Rac1 {[%emt 0:04:42]} Rd5 {[%emt 0:00:00]} 21. Nxc6 {[%emt 0:10:35]} Rxc6 {[%emt 0:00:00]} 22. a3 {[%emt 0:04:38]} Kf8 {[%emt 0:00:00]} 23. f4 {[%emt 0:01:11]} Ke8 {[%emt 0:00:41]} 24. Kf3 {[%emt 0:01:00]} a5 {[%emt 0:01:40]} 25. Ke4 {[%emt 0:01:30]} Rcd6 {[%emt 0:00:25]} 26. b4 {[%emt 0:01:36]} axb4 {[%emt 0:01:10]} 27. axb4 {[%emt 0:01:16]} f5+ {[%emt 0:00:23]} 28. Ke3 {[%emt 0:01:19]} Rc6 {[%emt 0:04:41]} 29. Bb2 {[%emt 0:03:53]} Rb5 {[%emt 0:01:22]} 30. Rxc6 {[%emt 0:00:38]} bxc6 {[%emt 0:00:04]} 31. Bc3 {[%emt 0:00:12]} Kd7 {[%emt 0:01:20]} 32. Ra1 {[%emt 0:00:13]} Rb8 {[%emt 0:00:20]} 33. Kd3 {[%emt 0:00:16]} Kc7 {[%emt 0:00:50]} 34. Kc4 {[%emt 0:00:26]} Kb6 {[%emt 0:00:48]} 35. Re1 {[%emt 0:00:24]} Bf6 {[%emt 0:00:18]} 36. Re6 {[%emt 0:00:57]} Kc7 {[%emt 0:00:34]} 37. Re1 {[%emt 0:00:16]} Kb6 {[%emt 0:00:22]} 38. Ra1 {[%emt 0:00:13]} Rd8 {[%emt 0:00:31]} 39. Ra5 {[%emt 0:00:23]} Rc8 {[%emt 0:00:17]} 40. Rc5 {[%emt 0:00:53]} Rc7 {[%emt 0:00:25]} 41. Ra5 {[%emt 0:01:51]} Rc8 {[%emt 0:00:11]} 1/2-1/2

[Event "Austrian Championship Girls-U14 2024"]
[Site "Fuerstenfeld"]
[Date "2024.06.01"]
[Round "5.3"]
[White "Lahl, Sophie"]
[Black "Turdiyeva, Maryam"]
[Result "1-0"]
[ECO "A47"]
[WhiteElo "1519"]
[BlackElo "1682"]
[Annotator "NA RC"]
[PlyCount "103"]
[EventDate "2024.05.28"]
[EventType "swiss"]
[EventCountry "AUT"]
[SourceTitle "playchess.com"]
[Source "ChessBase"]
[SourceQuality "1"]
[TimeControl "5400+30"]

1. d4 {[%emt 0:00:01]} c5 {[%emt 0:00:07]} 2. e3 {[%emt 0:00:51]} Nf6 {[%emt 0:00:12]} 3. b3 {[%emt 0:00:41]} b6 {[%emt 0:00:15]} 4. Bb2 {[%emt 0:00:11]} e6 {[%emt 0:00:24]} 5. Nd2 {[%emt 0:00:29]} Bb7 {[%emt 0:00:19]} 6. Ngf3 {[%emt 0:00:31]} Be7 {[%emt 0:00:17]} 7. Bd3 {[%emt 0:00:47]} O-O {[%emt 0:00:25]} 8. O-O {[%emt 0:02:04]} Nc6 {[%emt 0:00:13]} 9. a3 {[%emt 0:00:49]} Rc8 {[%emt 0:00:34]} 10. Ne5 {[%emt 0:00:31]} Qc7 {[%emt 0:11:32]} 11. Nxc6 {[%emt 0:03:22]} Qxc6 {[%emt 0:01:17]} 12. Qf3 {[%emt 0:00:54]} Qxf3 {[%emt 0:08:06]} 13. Nxf3 {[%emt 0:00:26]} Ne4 {[%emt 0:02:45]} 14. Rfd1 {[%emt 0:06:48]} Bf6 {[%emt 1:11:04]} 15. Nd2 {[%emt 0:04:43]} Nxd2 {[%emt 0:00:00]} 16. Rxd2 {[%emt 0:00:47]} d5 {[%emt 0:00:00]} 17. c4 {[%emt 0:07:37]} dxc4 {[%emt 0:00:00]} 18. Bxc4 {[%emt 0:00:28]} Rfd8 {[%emt 0:00:00]} 19. Rad1 {[%emt 0:01:00]} cxd4 {[%emt 0:00:00]} 20. Bxd4 {[%emt 0:00:58]} Bxd4 {[%emt 0:00:00]} 21. Rxd4 {[%emt 0:01:06]} Rxd4 {[%emt 0:00:00]} 22. Rxd4 {[%emt 0:00:18]} b5 {[%emt 0:00:00]} 23. Bxb5 {[%emt 0:02:31]} Rc1+ {[%emt 0:00:00]} 24. Bf1 {[%emt 0:00:10]} Kf8 {[%emt 0:00:00]} 25. Ra4 {[%emt 0:02:54]} Rb1 {[%emt 0:00:00]} 26. f3 {[%emt 0:03:10]} Rxb3 {[%emt 0:01:42]} 27. Rxa7 {[%emt 0:00:24]} Bc6 {[%emt 0:00:50]} 28. e4 {[%emt 0:00:51]} Rb1 {[%emt 0:00:41]} 29. Kf2 {[%emt 0:00:16]} Ke8 {[%emt 0:00:41]} 30. Ra5 {[%emt 0:04:50]} Kd7 {[%emt 0:00:45]} 31. Ra7+ {[%emt 0:00:51]} Ke8 {[%emt 0:01:36]} 32. a4 {[%emt 0:00:40]} Rb2+ {[%emt 0:00:54]} 33. Kg3 {[%emt 0:00:26]} g6 {[%emt 0:00:20]} 34. a5 {[%emt 0:00:58]} Rb8 {[%emt 0:00:42]} 35. Ra6 {[%emt 0:01:10]} Bd7 {[%emt 0:00:20]} 36. Rb6 {[%emt 0:00:25]} Rxb6 {[%emt 0:00:26]} 37. axb6 {[%emt 0:00:13]} Kd8 {[%emt 0:00:34]} 38. Ba6 {[%emt 0:00:45]} Bc6 {[%emt 0:00:22]} 39. Kg4 {[%emt 0:00:27]} h6 {[%emt 0:00:15]} 40. Kf4 {[%emt 0:00:20]} f6 {[%emt 0:00:12]} 41. h4 {[%emt 0:02:10]} e5+ {[%emt 0:00:46]} 42. Ke3 {[%emt 0:00:50]} Kd7 {[%emt 0:00:24]} 43. Kd3 {[%emt 0:00:50]} Kd8 {[%emt 0:00:35]} 44. Kc4 {[%emt 0:00:23]} Kd7 {[%emt 0:00:19]} 45. Kc5 {[%emt 0:00:17]} Ba4 {[%emt 0:01:03]} 46. Bb5+ {[%emt 0:00:33]} Bxb5 {[%emt 0:00:07]} 47. Kxb5 {[%emt 0:00:04]} Kd8 {[%emt 0:00:22]} 48. Kc6 {[%emt 0:00:12]} Kc8 {[%emt 0:00:07]} 49. b7+ {[%emt 0:00:21]} Kb8 {[%emt 0:00:05]} 50. Kd6 {[%emt 0:00:14]} Kxb7 {[%emt 0:00:07]} 51. Ke6 {[%emt 0:00:09]} g5 {[%emt 0:00:30]} 52. Kxf6 {[%emt 0:00:30]} 1-0

[Event "Austrian Championship Girls-U14 2024"]
[Site "Fuerstenfeld"]
[Date "2024.06.01"]
[Round "6.1"]
[White "Wiessner, Elisabeth"]
[Black "Aboulenein-Djamshidian, Kimia"]
[Result "1/2-1/2"]
[ECO "C54"]
[WhiteElo "1572"]
[BlackElo "1547"]
[Annotator "NA RC"]
[PlyCount "137"]
[EventDate "2024.05.28"]
[EventType "swiss"]
[EventCountry "AUT"]
[SourceTitle "playchess.com"]
[Source "ChessBase"]
[SourceQuality "1"]
[TimeControl "5400+30"]

1. e4 {[%emt 0:00:02]} e5 {[%emt 0:00:18]} 2. Nf3 {[%emt 0:00:33]} Nc6 {[%emt 0:00:11]} 3. Bc4 {[%emt 0:00:14]} Bc5 {[%emt 0:00:24]} 4. d3 {[%emt 0:00:19]} Nf6 {[%emt 0:00:50]} 5. c3 {[%emt 0:00:50]} O-O {[%emt 0:00:58]} 6. O-O {[%emt 0:00:19]} a6 {[%emt 0:10:58]} 7. Bb3 {[%emt 0:01:01]} Ba7 {[%emt 0:02:52]} 8. Nbd2 {[%emt 0:02:43]} d5 {[%emt 0:02:07]} 9. exd5 {[%emt 0:01:04]} Nxd5 {[%emt 0:00:50]} 10. Ne4 {[%emt 0:05:46]} Kh8 {[%emt 0:01:09]} 11. Re1 {[%emt 0:03:10]} f5 {[%emt 0:11:17]} 12. Ng3 {[%emt 0:05:08]} e4 {[%emt 0:09:42]} 13. dxe4 {[%emt 0:07:14]} fxe4 {[%emt 0:00:27]} 14. Bxd5 {[%emt 0:09:41]} exf3 {[%emt 0:07:22]} 15. Bxf3 {[%emt 0:00:50]} Qxd1 {[%emt 0:00:35]} 16. Rxd1 {[%emt 0:00:15]} Ne5 {[%emt 0:00:13]} 17. Be3 {[%emt 0:03:08]} Nxf3+ {[%emt 0:01:31]} 18. gxf3 {[%emt 0:00:10]} b6 {[%emt 0:00:41]} 19. f4 {[%emt 0:03:05]} Bg4 {[%emt 0:00:48]} 20. Rd2 {[%emt 0:09:29]} Rfd8 {[%emt 0:03:50]} 21. Rxd8+ {[%emt 0:00:47]} Rxd8 {[%emt 0:00:12]} 22. Rf1 {[%emt 0:01:44]} Bf3 {[%emt 0:01:04]} 23. f5 {[%emt 0:03:49]} Rf8 {[%emt 0:05:26]} 24. h3 {[%emt 0:04:09]} c5 {[%emt 0:02:46]} 25. Re1 {[%emt 0:04:36]} Bb8 {[%emt 0:04:35]} 26. Bg5 {[%emt 0:05:55]} h6 {[%emt 0:01:54]} 27. Be7 {[%emt 0:02:09]} Rc8 {[%emt 0:07:14]} 28. f6 {[%emt 0:02:42]} gxf6 {[%emt 0:00:38]} 29. Bxf6+ {[%emt 0:00:07]} Kh7 {[%emt 0:00:42]} 30. Re7+ {[%emt 0:01:12]} Kg6 {[%emt 0:00:21]} 31. Be5 {[%emt 0:00:35]} Bxe5 {[%emt 0:01:03]} 32. Rxe5 {[%emt 0:00:07]} Rc6 {[%emt 0:01:04]} 33. h4 {[%emt 0:02:52]} Bg4 {[%emt 0:03:40]} 34. Rd5 {[%emt 0:04:38]} Be6 {[%emt 0:02:18]} 35. h5+ {[%emt 0:01:24]} Kf7 {[%emt 0:00:21]} 36. Rd8 {[%emt 0:02:25]} Bxa2 {[%emt 0:01:08]} 37. Kg2 {[%emt 0:02:55]} Be6 {[%emt 0:02:00]} 38. Kf3 {[%emt 0:01:26]} b5 {[%emt 0:01:55]} 39. Kf4 {[%emt 0:02:43]} b4 {[%emt 0:01:07]} 40. cxb4 {[%emt 0:00:22]} cxb4 {[%emt 0:00:11]} 41. Ke3 {[%emt 0:02:02]} Rc2 {[%emt 0:00:26]} 42. Rd2 {[%emt 0:02:02]} Rxd2 {[%emt 0:01:07]} 43. Kxd2 {[%emt 0:00:01]} a5 {[%emt 0:01:33]} 44. Ne4 {[%emt 0:02:11]} Bg4 {[%emt 0:01:22]} 45. Ng3 {[%emt 0:00:28]} a4 {[%emt 0:00:14]} 46. Kc2 {[%emt 0:01:42]} a3 {[%emt 0:01:08]} 47. bxa3 {[%emt 0:00:13]} bxa3 {[%emt 0:00:14]} 48. Kb3 {[%emt 0:00:13]} Kf6 {[%emt 0:00:12]} 49. Kxa3 {[%emt 0:00:16]} Kg5 {[%emt 0:00:05]} 50. Kb2 {[%emt 0:00:13]} Bxh5 {[%emt 0:00:06]} 51. Kc1 {[%emt 0:00:15]} Bg4 {[%emt 0:01:26]} 52. Kd2 {[%emt 0:00:17]} Kf4 {[%emt 0:00:07]} 53. Ke1 {[%emt 0:00:21]} Kf3 {[%emt 0:00:52]} 54. Kf1 {[%emt 0:00:45]} Bh3+ {[%emt 0:00:43]} 55. Kg1 {[%emt 0:00:10]} Bg2 {[%emt 0:00:32]} 56. Nh5 {[%emt 0:00:38]} Bh3 {[%emt 0:02:35]} 57. Nf6 {[%emt 0:02:10]} Be6 {[%emt 0:03:49]} 58. Nh5 {[%emt 0:00:35]} Kg4 {[%emt 0:00:49]} 59. Ng3 {[%emt 0:00:15]} Bd5 {[%emt 0:00:22]} 60. Kh2 {[%emt 0:00:39]} Bf3 {[%emt 0:00:27]} 61. Nf1 {[%emt 0:02:29]} h5 {[%emt 0:00:25]} 62. Ne3+ {[%emt 0:00:17]} Kg5 {[%emt 0:00:52]} 63. Kg3 {[%emt 0:00:48]} Bc6 {[%emt 0:00:48]} 64. f4+ {[%emt 0:00:47]} Kf6 {[%emt 0:00:58]} 65. Kh4 {[%emt 0:00:15]} Bf3 {[%emt 0:00:52]} 66. Nf1 {[%emt 0:00:14]} Kf5 {[%emt 0:00:23]} 67. Ng3+ {[%emt 0:00:07]} Kxf4 {[%emt 0:00:06]} 68. Nxh5+ {[%emt 0:00:04]} Bxh5 {[%emt 0:00:06]} 69. Kxh5 {[%emt 0:00:03]} 1/2-1/2

[Event "Austrian Championship Girls-U14 2024"]
[Site "Fuerstenfeld"]
[Date "2024.06.01"]
[Round "6.2"]
[White "Huber, Elisa"]
[Black "Lahl, Sophie"]
[Result "1/2-1/2"]
[ECO "D00"]
[WhiteElo "1633"]
[BlackElo "1519"]
[Annotator "NA RC"]
[PlyCount "49"]
[EventDate "2024.05.28"]
[EventType "swiss"]
[EventCountry "AUT"]
[SourceTitle "playchess.com"]
[Source "ChessBase"]
[SourceQuality "1"]
[TimeControl "5400+30"]

1. d4 {[%emt 0:00:02]} d5 {[%emt 0:00:04]} 2. Bf4 {[%emt 0:00:05]} e6 {[%emt 0:00:10]} 3. e3 {[%emt 0:00:05]} c5 {[%emt 0:00:15]} 4. c3 {[%emt 0:00:06]} Nf6 {[%emt 0:00:05]} 5. Nd2 {[%emt 0:00:13]} Bd6 {[%emt 0:00:12]} 6. Bg3 {[%emt 0:00:07]} Qc7 {[%emt 0:00:14]} 7. Ngf3 {[%emt 0:00:32]} Nbd7 {[%emt 0:00:28]} 8. Bd3 {[%emt 0:00:39]} b6 {[%emt 0:00:40]} 9. Qe2 {[%emt 0:02:27]} Bb7 {[%emt 0:00:43]} 10. Bxd6 {[%emt 0:01:01]} Qxd6 {[%emt 0:00:33]} 11. O-O {[%emt 0:04:40]} O-O {[%emt 0:01:53]} 12. e4 {[%emt 0:04:51]} dxe4 {[%emt 0:01:12]} 13. Nxe4 {[%emt 0:00:43]} Nxe4 {[%emt 0:00:38]} 14. Bxe4 {[%emt 0:00:10]} Bxe4 {[%emt 0:00:24]} 15. Qxe4 {[%emt 0:00:10]} Nf6 {[%emt 0:02:56]} 16. Qe5 {[%emt 0:01:19]} Qxe5 {[%emt 0:02:49]} 17. dxe5 {[%emt 0:00:14]} Nd5 {[%emt 1:25:44]} 18. c4 {[%emt 0:02:44]} Nb4 {[%emt 0:00:00]} 19. Rfd1 {[%emt 0:02:36]} Rfd8 {[%emt 0:00:00]} 20. a3 {[%emt 0:02:38]} Nc6 {[%emt 0:00:00]} 21. h3 {[%emt 0:09:26]} h6 {[%emt 0:00:00]} 22. Kf1 {[%emt 0:03:50]} Kf8 {[%emt 0:00:00]} 23. Ke1 {[%emt 0:00:31]} Ke7 {[%emt 0:00:00]} 24. Rxd8 {[%emt 0:00:30]} Rxd8 {[%emt 0:00:00]} 25. Rd1 {[%emt 0:00:49]} 1/2-1/2

[Event "Austrian Championship Girls-U14 2024"]
[Site "Fuerstenfeld"]
[Date "2024.06.01"]
[Round "6.3"]
[White "Brunner, Josephina Akiko"]
[Black "Spangl, Marilena"]
[Result "1-0"]
[ECO "B11"]
[WhiteElo "1744"]
[BlackElo "1595"]
[Annotator "NA RC"]
[PlyCount "45"]
[EventDate "2024.05.28"]
[EventType "swiss"]
[EventCountry "AUT"]
[SourceTitle "playchess.com"]
[Source "ChessBase"]
[SourceQuality "1"]
[TimeControl "5400+30"]

1. e4 {[%emt 0:00:05]} c6 {[%emt 0:00:10]} 2. Nc3 {[%emt 0:00:16]} d5 {[%emt 0:00:13]} 3. Nf3 {[%emt 0:00:16]} Bg4 {[%emt 0:00:54]} 4. h3 {[%emt 0:00:32]} Bxf3 {[%emt 0:00:30]} 5. Qxf3 {[%emt 0:00:16]} dxe4 {[%emt 0:00:38]} 6. Nxe4 {[%emt 0:00:26]} e6 {[%emt 0:01:10]} 7. Be2 {[%emt 0:04:27]} Nd7 {[%emt 0:02:43]} 8. d4 {[%emt 0:02:08]} Ngf6 {[%emt 0:01:21]} 9. O-O {[%emt 0:03:46]} Nxe4 {[%emt 0:01:15]} 10. Qxe4 {[%emt 0:00:05]} Nf6 {[%emt 0:01:53]} 11. Qd3 {[%emt 0:00:56]} Bd6 {[%emt 0:02:55]} 12. c3 {[%emt 0:05:23]} O-O {[%emt 0:03:52]} 13. Bf3 {[%emt 0:20:14]} Qc7 {[%emt 0:06:58]} 14. Re1 {[%emt 0:10:30]} Rfd8 {[%emt 0:08:35]} 15. Be3 {[%emt 0:06:55]} c5 {[%emt 0:03:58]} 16. Qb5 {[%emt 0:18:06]} cxd4 {[%emt 0:11:03]} 17. Bxd4 {[%emt 0:02:54]} Rd7 {[%emt 0:02:11]} 18. g3 {[%emt 0:04:29]} Nd5 {[%emt 0:08:42]} 19. Bxd5 {[%emt 0:00:30]} exd5 {[%emt 0:00:19]} 20. Qe2 {[%emt 0:01:19]} a6 {[%emt 0:04:46]} 21. Qg4 {[%emt 0:00:33]} f6 {[%emt 0:02:28]} 22. Bxf6 {[%emt 0:01:42]} Qb6 {[%emt 0:01:11]} 23. Qxd7 {[%emt 0:01:25]} 1-0

[Event "Austrian Championship Girls-U14 2024"]
[Site "Fuerstenfeld"]
[Date "2024.06.01"]
[Round "6.4"]
[White "Wang, Yihan"]
[Black "Knittel-Templ, Paula"]
[Result "1-0"]
[ECO "C66"]
[WhiteElo "1516"]
[BlackElo "1599"]
[Annotator "NA RC"]
[PlyCount "171"]
[EventDate "2024.05.28"]
[EventType "swiss"]
[EventCountry "AUT"]
[SourceTitle "playchess.com"]
[Source "ChessBase"]
[SourceQuality "1"]
[TimeControl "5400+30"]

1. e4 {[%emt 0:00:03]} e5 {[%emt 0:00:19]} 2. Nf3 {[%emt 0:00:20]} Nc6 {[%emt 0:00:26]} 3. Bb5 {[%emt 0:00:30]} d6 {[%emt 0:00:29]} 4. d3 {[%emt 0:01:13]} Nf6 {[%emt 0:01:48]} 5. c3 {[%emt 0:01:52]} Bd7 {[%emt 0:00:16]} 6. h3 {[%emt 0:01:30]} h6 {[%emt 0:00:24]} 7. Nbd2 {[%emt 0:02:08]} Be7 {[%emt 0:00:42]} 8. O-O {[%emt 0:01:19]} O-O {[%emt 0:01:38]} 9. Re1 {[%emt 0:00:44]} a6 {[%emt 0:01:29]} 10. Ba4 {[%emt 0:00:27]} Nh5 {[%emt 0:04:16]} 11. Nf1 {[%emt 0:03:12]} Nf6 {[%emt 0:01:46]} 12. Ne3 {[%emt 0:02:46]} Re8 {[%emt 0:02:36]} 13. Qe2 {[%emt 0:04:33]} b5 {[%emt 0:01:37]} 14. Bc2 {[%emt 0:00:32]} Qc8 {[%emt 0:05:45]} 15. Kh2 {[%emt 0:05:20]} Rb8 {[%emt 0:11:06]} 16. a3 {[%emt 0:04:50]} Nd8 {[%emt 0:04:35]} 17. d4 {[%emt 0:04:27]} exd4 {[%emt 0:01:35]} 18. cxd4 {[%emt 0:00:24]} c6 {[%emt 0:02:59]} 19. b3 {[%emt 0:03:29]} Qc7 {[%emt 0:02:34]} 20. Kg1 {[%emt 0:06:05]} Bf8 {[%emt 0:01:26]} 21. e5 {[%emt 0:03:47]} dxe5 {[%emt 0:01:22]} 22. dxe5 {[%emt 0:00:48]} Nd5 {[%emt 0:00:16]} 23. Qd3 {[%emt 0:02:16]} g6 {[%emt 0:00:13]} 24. Nxd5 {[%emt 0:02:45]} cxd5 {[%emt 0:00:09]} 25. Ra2 {[%emt 0:04:23]} Bf5 {[%emt 0:00:48]} 26. Qd1 {[%emt 0:01:07]} Qd7 {[%emt 0:04:48]} 27. Bxf5 {[%emt 0:02:58]} gxf5 {[%emt 0:01:21]} 28. Rd2 {[%emt 0:01:56]} Bg7 {[%emt 0:03:48]} 29. Rxd5 {[%emt 0:01:31]} Qc6 {[%emt 0:01:35]} 30. Bf4 {[%emt 0:02:11]} Ne6 {[%emt 0:00:48]} 31. Bh2 {[%emt 0:03:41]} Red8 {[%emt 0:03:35]} 32. Rd6 {[%emt 0:04:26]} Qc5 {[%emt 0:00:33]} 33. Qc1 {[%emt 0:01:00]} Rbc8 {[%emt 0:01:39]} 34. Qxc5 {[%emt 0:01:51]} Nxc5 {[%emt 0:01:02]} 35. b4 {[%emt 0:04:05]} Rxd6 {[%emt 0:00:48]} 36. exd6 {[%emt 0:00:14]} Nd7 {[%emt 0:00:48]} 37. Ne5 {[%emt 0:03:46]} Bxe5 {[%emt 0:01:07]} 38. Bxe5 {[%emt 0:00:20]} Re8 {[%emt 0:01:59]} 39. Bc3 {[%emt 0:01:17]} Rxe1+ {[%emt 0:00:53]} 40. Bxe1 {[%emt 0:00:18]} f6 {[%emt 0:00:03]} 41. Bd2 {[%emt 0:01:06]} h5 {[%emt 0:00:13]} 42. f3 {[%emt 0:00:59]} Kf7 {[%emt 0:00:07]} 43. Kf2 {[%emt 0:01:24]} Ke6 {[%emt 0:00:55]} 44. Bf4 {[%emt 0:01:21]} Ne5 {[%emt 0:00:13]} 45. Bxe5 {[%emt 0:01:37]} fxe5 {[%emt 0:00:06]} 46. d7 {[%emt 0:00:52]} Kxd7 {[%emt 0:00:05]} 47. g3 {[%emt 0:00:33]} Kd6 {[%emt 0:00:16]} 48. Ke3 {[%emt 0:00:21]} Kd5 {[%emt 0:01:22]} 49. Kd3 {[%emt 0:00:39]} e4+ {[%emt 0:00:32]} 50. fxe4+ {[%emt 0:00:10]} fxe4+ {[%emt 0:00:09]} 51. Ke3 {[%emt 0:01:08]} Ke5 {[%emt 0:00:35]} 52. g4 {[%emt 0:00:44]} h4 {[%emt 0:00:46]} 53. g5 {[%emt 0:00:26]} Kf5 {[%emt 0:00:04]} 54. g6 {[%emt 0:00:16]} Kxg6 {[%emt 0:00:12]} 55. Kxe4 {[%emt 0:00:16]} Kg5 {[%emt 0:00:07]} 56. Ke5 {[%emt 0:00:14]} Kh6 {[%emt 0:02:09]} 57. Kf6 {[%emt 0:00:31]} Kh5 {[%emt 0:00:16]} 58. Kf5 {[%emt 0:16:29]} Kh6 {[%emt 0:00:04]} 59. Kg4 {[%emt 0:00:00]} Kg6 {[%emt 0:00:14]} 60. Kxh4 {[%emt 0:00:00]} Kh6 {[%emt 0:00:05]} 61. Kg4 {[%emt 0:00:00]} Kg6 {[%emt 0:00:05]} 62. Kf4 {[%emt 0:00:00]} Kh5 {[%emt 0:00:37]} 63. Ke5 {[%emt 0:00:00]} Kh4 {[%emt 0:00:03]} 64. Kd6 {[%emt 0:00:00]} Kxh3 {[%emt 0:00:02]} 65. Kc6 {[%emt 0:00:00]} Kg3 {[%emt 0:00:04]} 66. Kb6 {[%emt 0:00:00]} Kf3 {[%emt 0:00:04]} 67. Kxa6 {[%emt 0:00:00]} Ke3 {[%emt 0:00:03]} 68. Kxb5 {[%emt 0:00:00]} Kd4 {[%emt 0:00:08]} 69. a4 {[%emt 0:00:00]} Kd5 {[%emt 0:00:04]} 70. Kb6 {[%emt 0:00:00]} Kd6 {[%emt 0:00:14]} 71. a5 {[%emt 0:00:00]} Kd7 {[%emt 0:00:03]} 72. Kb7 {[%emt 0:00:00]} Kd6 {[%emt 0:00:04]} 73. a6 {[%emt 0:00:00]} Kd5 {[%emt 0:00:10]} 74. a7 {[%emt 0:00:00]} Kc4 {[%emt 0:00:07]} 75. a8=Q {[%emt 0:08:30]} Kb5 {[%emt 0:00:02]} 76. Qa5+ {[%emt 0:00:30]} Kc4 {[%emt 0:00:04]} 77. Kc6 {[%emt 0:00:00]} Kb3 {[%emt 0:00:03]} 78. b5 {[%emt 0:00:00]} Kc4 {[%emt 0:00:13]} 79. b6 {[%emt 0:00:00]} Kd4 {[%emt 0:00:07]} 80. b7 {[%emt 0:00:00]} Kc4 {[%emt 0:00:36]} 81. b8=R {[%emt 0:00:00]} Kd3 {[%emt 0:00:09]} 82. Qe5 {[%emt 0:00:00]} Kc2 {[%emt 0:00:06]} 83. Rd8 {[%emt 0:00:00]} Kb3 {[%emt 0:00:04]} 84. Qc5 {[%emt 0:00:00]} Ka4 {[%emt 0:00:16]} 85. Qb5+ {[%emt 0:00:00]} Ka3 {[%emt 0:00:06]} 86. Ra8# {[%emt 0:00:00]} 1-0